bitfinex/quotes_BTCUSD_20240827
["timestamp","ask_amount","ask_price","bid_price","bid_amount"]
[1724744582951,2.7066567,63019.0,63013.0,0.000823]
[1724744585265,2.5391567,63019.0,63013.0,0.000823]
[1724744587691,1.8391567,63019.0,63013.0,0.000823]
[1724744590789,2.5391567,63019.0,63013.0,0.000823]
[1724744591574,3.8171567,63019.0,63013.0,0.000823]
[1724744593066,3.9846567,63019.0,63013.0,0.000823]
[1724744595037,3.9846567,63019.0,63011.0,0.000823]
[1724744595038,1.00943501,63012.0,63011.0,1e-08]
[1724744595254,1.28596604,63012.0,63011.0,1e-08]
[1724744595516,1.50814504,63012.0,63011.0,1e-08]
[1724744595738,1.53302602,63012.0,63011.0,1e-08]
[1724744596184,2.24702602,63012.0,63011.0,1e-08]
[1724744596397,2.19662602,63012.0,63011.0,1e-08]
[1724744596853,2.41880502,63012.0,63011.0,1e-08]
[1724744597283,2.19662602,63012.0,63011.0,1e-08]
[1724744598155,2.41880502,63012.0,63011.0,1e-08]
[1724744598364,2.19662602,63012.0,63011.0,1e-08]
[1724744599943,2.41880502,63012.0,63011.0,1e-08]
[1724744600925,2.19662602,63012.0,63011.0,1e-08]
[1724744603197,2.41880502,63012.0,63011.0,1e-08]
[1724744603844,1.71880502,63012.0,63011.0,1e-08]
[1724744605571,1.49662602,63012.0,63011.0,1e-08]
[1724744606398,1.09079504,63009.0,63008.0,0.0827]
[1724744606603,0.55729401,63008.0,63007.0,0.009053]
[1724744606848,1.3363526,63008.0,63007.0,0.009053]
[1724744607048,1.3593526,63008.0,63007.0,0.009053]
[1724744607927,1.3593526,63008.0,63007.0,0.008053]
[1724744609143,1.3693526,63008.0,63007.0,0.008053]
[1724744609352,1.3803526,63008.0,63007.0,0.008053]
[1724744610064,1.6025466,63008.0,63007.0,0.008053]
[1724744610738,1.36787601,63008.0,63007.0,0.008053]
[1724744613596,1.60253908,63008.0,63007.0,0.008053]
[1724744613870,1.36787601,63008.0,63007.0,0.008053]
[1724744614071,1.43152801,63008.0,63007.0,0.008053]
[1724744614567,1.20933401,63008.0,63007.0,0.008053]
[1724744615906,1.57042801,63008.0,63007.0,0.008053]
[1724744617009,1.57042801,63008.0,63000.0,0.1818]
[1724744617010,1.39300701,62996.0,62963.0,0.009064]
[1724744617381,0.333486,62971.0,62970.0,0.1445]
[1724744617605,0.74494103,62971.0,62970.0,0.1445]
[1724744618266,0.99826503,62971.0,62970.0,0.1445]
[1724744618477,0.99826503,62971.0,62963.0,0.009064]
[1724744618478,0.55768101,62964.0,62963.0,0.009064]
[1724744618720,0.778221,62964.0,62963.0,0.009064]
[1724744618925,0.878221,62964.0,62963.0,0.153564]
[1724744620805,0.880221,62964.0,62963.0,0.153564]
[1724744621008,0.9051167,62964.0,62963.0,0.153564]
[1724744621137,0.9031167,62964.0,62963.0,0.153564]
[1724744621546,0.9061167,62964.0,62963.0,0.153564]
[1724744621956,0.9071167,62964.0,62963.0,0.153564]
[1724744624051,0.90692569,62964.0,62963.0,0.153564]
[1724744624524,0.90392569,62964.0,62963.0,0.153564]
[1724744624955,0.91492569,62964.0,62963.0,0.153564]
[1724744625404,0.90392569,62964.0,62963.0,0.153564]
[1724744626258,0.90292569,62964.0,62963.0,0.153564]
[1724744626448,0.91292569,62964.0,62963.0,0.153564]
[1724744627208,0.91392569,62964.0,62963.0,0.153564]
[1724744627657,0.92392569,62964.0,62963.0,0.153564]
[1724744629944,0.91392569,62964.0,62963.0,0.153564]
[1724744630150,0.92292569,62964.0,62963.0,0.153564]
[1724744630576,1.28917469,62964.0,62963.0,0.009064]
[1724744630782,1.36756655,62964.0,62963.0,0.009064]
[1724744630990,1.30917469,62964.0,62963.0,0.009064]
[1724744631189,1.41395841,62964.0,62963.0,0.009064]
[1724744631386,1.39021026,62964.0,62963.0,0.009064]
[1724744631592,1.39101927,62964.0,62963.0,0.009064]
[1724744631778,1.38101927,62964.0,62963.0,0.009064]
[1724744631922,1.39501927,62964.0,62963.0,0.009064]
[1724744632148,1.37132694,62964.0,62963.0,0.009064]
[1724744632372,1.34832694,62964.0,62963.0,0.009064]
[1724744632747,1.40023334,62964.0,62963.0,0.009064]
[1724744633400,1.3668901,62964.0,62963.0,0.009064]
[1724744635672,1.5892391,62964.0,62963.0,0.009064]
[1724744635871,1.68402282,62964.0,62963.0,0.009064]
[1724744636076,1.5892391,62964.0,62963.0,0.009064]
[1724744636285,1.70751302,62964.0,62963.0,0.009064]
[1724744636684,1.67951302,62964.0,62963.0,0.009064]
[1724744637111,1.69351302,62964.0,62963.0,0.009064]
[1724744637335,1.5472391,62964.0,62963.0,0.009064]
[1724744637514,1.5752391,62964.0,62963.0,0.009064]
[1724744638071,1.5612391,62964.0,62963.0,0.009064]
[1724744638344,1.65581478,62964.0,62963.0,0.009064]
[1724744638670,1.66981478,62964.0,62963.0,0.009064]
[1724744639358,1.5752391,62964.0,62963.0,0.009064]
[1724744640431,1.62252078,62964.0,62963.0,0.009064]
[1724744640649,1.62251875,62964.0,62963.0,0.009064]
[1724744641343,1.5752391,62964.0,62963.0,0.009064]
[1724744645282,1.62251875,62964.0,62963.0,0.009064]
[1724744647088,1.64615857,62964.0,62963.0,0.009064]
[1724744647287,1.5752391,62964.0,62963.0,0.009064]
[1724744648238,1.65522257,62964.0,62963.0,0.009064]
[1724744648848,2.35522257,62964.0,62963.0,0.009064]
[1724744649282,2.3788624,62964.0,62963.0,0.009064]
[1724744649709,2.2349624,62964.0,62963.0,0.009064]
[1724744650293,1.55860222,62964.0,62963.0,0.009064]
[1724744650463,1.4264031,62964.0,62963.0,0.009064]
[1724744651350,1.4124031,62964.0,62963.0,0.009064]
[1724744651773,2.1264031,62964.0,62963.0,0.009064]
[1724744652344,1.9180541,62964.0,62963.0,0.009064]
[1724744652486,1.70000825,62964.0,62963.0,0.150764]
[1724744652695,1.62889609,62964.0,62963.0,0.150764]
[1724744652926,0.90683209,62964.0,62963.0,0.150764]
[1724744653129,0.58448309,62964.0,62963.0,0.150764]
[1724744653336,0.61148309,62964.0,62963.0,0.150764]
[1724744653743,0.58348309,62964.0,62963.0,0.150764]
[1724744653946,0.81583209,62964.0,62963.0,0.150764]
[1724744654293,0.60348309,62964.0,62963.0,0.150764]
[1724744654514,0.70248309,62964.0,62963.0,0.150764]
[1724744654728,0.69448309,62964.0,62963.0,0.150764]
[1724744654938,0.70148309,62964.0,62963.0,0.150764]
[1724744655351,0.69148309,62964.0,62963.0,0.150764]
[1724744655762,0.69648309,62964.0,62963.0,0.150764]
[1724744656058,0.69148309,62964.0,62963.0,0.150764]
[1724744656293,0.7832993,62964.0,62963.0,0.150764]
[1724744656708,0.7842993,62964.0,62963.0,0.150764]
[1724744656978,1.0126483,62964.0,62963.0,0.150764]
[1724744657204,0.7792993,62964.0,62963.0,0.150764]
[1724744657443,1.0066483,62964.0,62963.0,0.150764]
[1724744657904,1.02436006,62964.0,62963.0,0.150764]
[1724744658127,0.90683209,62964.0,62963.0,0.150764]
[1724744658368,1.03136006,62964.0,62963.0,0.150764]
[1724744659282,1.03536006,62964.0,62963.0,0.150764]
[1724744659509,1.02836006,62964.0,62963.0,0.150764]
[1724744659759,1.03536006,62964.0,62963.0,0.150764]
[1724744660249,1.03436006,62964.0,62963.0,0.150764]
[1724744660496,0.91583209,62964.0,62963.0,0.150764]
[1724744660722,0.92083209,62964.0,62963.0,0.150764]
[1724744660935,0.91183209,62964.0,62963.0,0.150764]
[1724744661142,0.90683209,62964.0,62963.0,0.150764]
[1724744661365,0.91283209,62964.0,62963.0,0.150764]
[1724744661764,0.91583209,62964.0,62963.0,0.150764]
[1724744662025,0.91683209,62964.0,62963.0,0.150764]
[1724744662869,0.91083209,62964.0,62963.0,0.150764]
[1724744663076,0.91583209,62964.0,62963.0,0.150764]
[1724744663287,0.91083209,62964.0,62963.0,0.150764]
[1724744663503,0.91683209,62964.0,62963.0,0.150764]
[1724744663802,0.91183209,62964.0,62963.0,0.150764]
[1724744664034,0.91583209,62964.0,62963.0,0.150764]
[1724744664233,0.90683209,62964.0,62963.0,0.150764]
[1724744664832,0.91183209,62964.0,62963.0,0.150764]
[1724744665032,0.90683209,62964.0,62963.0,0.150764]
[1724744665652,0.91283209,62964.0,62963.0,0.150764]
[1724744667041,0.91683209,62964.0,62963.0,0.150764]
[1724744667242,0.91283209,62964.0,62963.0,0.150764]
[1724744667641,0.91164094,62964.0,62963.0,0.150764]
[1724744667856,1.35067019,62964.0,62963.0,0.009064]
[1724744668064,1.34667019,62964.0,62963.0,0.009064]
[1724744668286,1.51126475,62964.0,62963.0,0.009064]
[1724744668478,1.35067019,62964.0,62963.0,0.009064]
[1724744668683,1.34967019,62964.0,62963.0,0.009064]
[1724744668895,1.35467019,62964.0,62963.0,0.009064]
[1724744669106,1.3664792,62964.0,62963.0,0.009064]
[1724744669322,1.3674792,62964.0,62963.0,0.009064]
[1724744669521,1.3554792,62964.0,62963.0,0.009064]
[1724744669950,1.3674792,62964.0,62963.0,0.009064]
[1724744670155,1.3564792,62964.0,62963.0,0.009064]
[1724744670355,1.3814792,62964.0,62963.0,0.009064]
[1724744670564,1.3934792,62964.0,62963.0,0.009064]
[1724744670762,1.3924792,62964.0,62963.0,0.009064]
[1724744670970,1.6920282,62964.0,62963.0,0.009064]
[1724744671167,1.4696792,62964.0,62963.0,0.009064]
[1724744671406,2.1696792,62964.0,62963.0,0.009064]
[1724744671604,2.4532282,62964.0,62963.0,0.009064]
[1724744671806,2.2308792,62964.0,62963.0,0.009064]
[1724744672249,2.4532282,62964.0,62963.0,0.009064]
[1724744672686,2.2308792,62964.0,62963.0,0.009064]
[1724744673778,2.4532282,62964.0,62963.0,0.009064]
[1724744674143,2.2308792,62964.0,62963.0,0.009064]
[1724744674574,2.4532282,62964.0,62963.0,0.009064]
[1724744674777,2.2308792,62964.0,62963.0,0.009064]
[1724744675184,2.4532282,62964.0,62963.0,0.009064]
[1724744677086,2.2308792,62964.0,62963.0,0.009064]
[1724744680072,2.10092121,62964.0,62963.0,0.009064]
[1724744681350,2.32327021,62964.0,62963.0,0.009064]
[1724744700924,2.23654795,62964.0,62963.0,0.009064]
[1724744701169,2.10092121,62964.0,62963.0,0.009064]
[1724744701765,2.32327021,62964.0,62963.0,0.009064]
[1724744704295,2.55737403,62964.0,62963.0,0.009064]
[1724744705126,1.00252301,62955.0,62954.0,0.008128]
[1724744705362,1.21224527,62955.0,62954.0,0.008128]
[1724744705787,1.23714744,62955.0,62954.0,0.008128]
[1724744705994,1.21414744,62955.0,62954.0,0.008128]
[1724744706434,1.28084644,62955.0,62954.0,0.008128]
[1724744706661,1.28184644,62955.0,62954.0,0.008128]
[1724744711139,0.97093417,62955.0,62954.0,0.008128]
[1724744711306,0.97093417,62955.0,62954.0,0.151528]
[1724744711307,0.90704402,62955.0,62954.0,0.151528]
[1724744711479,1.15455496,62955.0,62954.0,0.151528]
[1724744711724,0.99376628,62955.0,62954.0,0.151528]
[1724744713007,0.99557529,62955.0,62954.0,0.008128]
[1724744713222,1.01857529,62955.0,62954.0,0.008128]
[1724744713433,1.24095629,62955.0,62954.0,0.008128]
[1724744713641,1.01757529,62955.0,62954.0,0.008128]
[1724744713873,1.01676628,62955.0,62954.0,0.008128]
[1724744715600,0.99376628,62955.0,62954.0,0.008128]
[1724744717369,1.2278701,62955.0,62954.0,0.008128]
[1724744719602,0.90704402,62955.0,62954.0,0.153828]
[1724744719809,0.99376628,62955.0,62954.0,0.153828]
[1724744720012,0.96886411,62955.0,62954.0,0.153828]
[1724744720237,0.99376578,62955.0,62954.0,0.153828]
[1724744720889,0.99676578,62955.0,62954.0,0.153828]
[1724744721113,0.99576578,62955.0,62954.0,0.153828]
[1724744721318,0.99376578,62955.0,62954.0,0.153828]
[1724744722577,0.99376578,62955.0,62954.0,0.073528]
[1724744723361,0.99376578,62955.0,62954.0,0.152228]
[1724744723561,0.99376578,62955.0,62954.0,0.008128]
[1724744731976,0.99676578,62955.0,62954.0,0.149928]
[1724744732194,0.90904352,62955.0,62954.0,0.149928]
[1724744732445,0.99576578,62955.0,62954.0,0.149928]
[1724744732659,0.97186411,62955.0,62954.0,0.149928]
[1724744733091,0.97086411,62955.0,62954.0,0.149928]
[1724744733294,0.97186411,62955.0,62954.0,0.149928]
[1724744733731,0.97086411,62955.0,62954.0,0.149928]
[1724744733940,0.97186411,62955.0,62954.0,0.149928]
[1724744736137,0.88514185,62955.0,62954.0,0.149928]
[1724744737426,1.04613703,62955.0,62954.0,0.149928]
[1724744737637,0.82375603,62955.0,62954.0,0.149928]
[1724744737848,0.80666286,62955.0,62954.0,0.149928]
[1724744738055,0.11799885,62955.0,62954.0,0.149928]
[1724744738782,0.11590525,62955.0,62954.0,0.149928]
[1724744738986,0.11290525,62955.0,62954.0,0.149928]
[1724744739190,0.33728625,62955.0,62954.0,0.149928]
[1724744739408,0.96877051,62955.0,62954.0,0.149928]
[1724744740117,0.97177051,62955.0,62954.0,0.149928]
[1724744740464,0.97077051,62955.0,62954.0,0.149928]
[1724744740668,0.96877051,62955.0,62954.0,0.149928]
[1724744740866,0.97077051,62955.0,62954.0,0.149928]
[1724744741309,0.97177051,62955.0,62954.0,0.149928]
[1724744741520,0.96877051,62955.0,62954.0,0.149928]
[1724744741736,0.97277051,62955.0,62954.0,0.149928]
[1724744742859,0.97177051,62955.0,62954.0,0.149928]
[1724744743073,0.97377051,62955.0,62954.0,0.149928]
[1724744743470,0.97277051,62955.0,62954.0,0.149928]
[1724744744892,0.97077051,62955.0,62954.0,0.149928]
[1724744746648,0.97277051,62955.0,62954.0,0.149928]
[1724744746856,0.97377051,62955.0,62954.0,0.149928]
[1724744747000,0.97277051,62955.0,62954.0,0.149928]
[1724744747205,0.88404825,62955.0,62954.0,0.149928]
[1724744747411,0.88704825,62955.0,62954.0,0.149928]
[1724744747631,0.88604825,62955.0,62954.0,0.149928]
[1724744747876,0.88704825,62955.0,62954.0,0.149928]
[1724744750250,0.88604825,62955.0,62954.0,0.149928]
[1724744750613,0.88704825,62955.0,62954.0,0.149928]
[1724744751173,1.33675151,62955.0,62954.0,0.008128]
[1724744751389,1.33656052,62955.0,62954.0,0.008128]
[1724744751588,1.36056052,62955.0,62954.0,0.008128]
[1724744752197,1.35756052,62955.0,62954.0,0.008128]
[1724744752353,1.36056052,62955.0,62954.0,0.008128]
[1724744752771,1.33675151,62955.0,62954.0,0.008128]
[1724744752976,1.33756052,62955.0,62954.0,0.008128]
[1724744754082,1.33656052,62955.0,62954.0,0.008128]
[1724744754422,1.33756052,62955.0,62954.0,0.008128]
[1724744754616,1.33656052,62955.0,62954.0,0.008128]
[1724744754818,1.33756052,62955.0,62954.0,0.008128]
[1724744755209,1.33656052,62955.0,62954.0,0.008128]
[1724744755415,1.33756052,62955.0,62954.0,0.008128]
[1724744757311,1.33456052,62955.0,62954.0,0.008128]
[1724744757513,1.33756052,62955.0,62954.0,0.008128]
[1724744759068,1.33656052,62955.0,62954.0,0.008128]
[1724744759247,1.33756052,62955.0,62954.0,0.008128]
[1724744760799,1.33656052,62955.0,62954.0,0.008128]
[1724744761002,1.33756052,62955.0,62954.0,0.008128]
[1724744761148,1.33575151,62955.0,62954.0,0.008128]
[1724744761334,1.33756052,62955.0,62954.0,0.008128]
[1724744761644,1.33575151,62955.0,62954.0,0.008128]
[1724744761846,1.39944951,62955.0,62954.0,0.008128]
[1724744763103,1.39844951,62955.0,62954.0,0.008128]
[1724744763285,0.97377051,62955.0,62954.0,0.008128]
[1724744763527,0.66466725,62955.0,62954.0,0.085928]
[1724744763744,0.4852773,62955.0,62954.0,0.152428]
[1724744763960,0.34228625,62955.0,62954.0,0.152428]
[1724744764431,0.34109507,62955.0,62954.0,0.152428]
[1724744764631,0.34209507,62955.0,62954.0,0.152428]
[1724744764896,0.0089064,62955.0,62954.0,0.152428]
[1724744765104,0.3424774,62955.0,62954.0,0.152428]
[1724744766520,0.4414774,62955.0,62954.0,0.152428]
[1724744766749,0.4424774,62955.0,62954.0,0.152428]
[1724744767218,0.4414774,62955.0,62954.0,0.152428]
[1724744767439,0.4424774,62955.0,62954.0,0.152428]
[1724744767653,0.56156573,62955.0,62954.0,0.152428]
[1724744767867,0.55956573,62955.0,62954.0,0.152428]
[1724744768360,0.56056573,62955.0,62954.0,0.152428]
[1724744769285,0.55756573,62955.0,62954.0,0.152428]
[1724744769515,0.55956573,62955.0,62954.0,0.152428]
[1724744770183,0.55656573,62955.0,62954.0,0.152428]
[1724744770695,0.55756573,62955.0,62954.0,0.152428]
[1724744771197,0.55653464,62955.0,62954.0,0.152428]
[1724744771395,0.0039064,62955.0,62954.0,0.152428]
[1724744771604,0.1150964,62955.0,62954.0,0.152428]
[1724744771833,0.21033507,62955.0,62954.0,0.152428]
[1724744772325,0.21033507,62955.0,62954.0,0.35034226]
[1724744772326,0.0009064,62955.0,62954.0,0.35034226]
[1724744772471,0.0009064,62955.0,62954.0,0.23915026]
[1724744772870,0.0009064,62955.0,62954.0,0.35034226]
[1724744773747,0.0019064,62955.0,62954.0,0.57272626]
[1724744774400,0.0029064,62955.0,62954.0,0.57272626]
[1724744776075,0.0019064,62955.0,62954.0,0.57272626]
[1724744776276,0.0009064,62955.0,62954.0,0.35034226]
[1724744776626,0.0019064,62955.0,62954.0,0.35034226]
[1724744776827,0.0029064,62955.0,62954.0,0.35034226]
[1724744779860,0.0278025,62955.0,62954.0,0.35034226]
[1724744780228,0.0268025,62955.0,62954.0,0.35034226]
[1724744780428,0.0258025,62955.0,62954.0,0.35034226]
[1724744780634,0.0268025,62955.0,62954.0,0.35034226]
[1724744780831,0.0278025,62955.0,62954.0,0.57272626]
[1724744781042,0.0278025,62955.0,62954.0,0.58193252]
[1724744781868,0.0278025,62955.0,62954.0,0.35034226]
[1724744782657,0.0029064,62955.0,62954.0,0.35034226]
[1724744784263,0.0029064,62955.0,62954.0,0.57272626]
[1724744785791,0.02780232,62955.0,62954.0,0.57272626]
[1724744787515,0.02680232,62955.0,62954.0,0.57272626]
[1724744788026,0.02780232,62955.0,62954.0,0.57272626]
[1724744788224,0.02680232,62955.0,62954.0,0.57272626]
[1724744788625,0.0029064,62955.0,62954.0,0.57272626]
[1724744790246,0.0029064,62955.0,62954.0,0.486004]
[1724744790452,0.0029064,62955.0,62954.0,0.57272626]
[1724744791622,0.0009064,62955.0,62954.0,0.57272626]
[1724744791813,0.0019064,62955.0,62954.0,0.57272626]
[1724744792027,0.02780244,62955.0,62954.0,0.57272626]
[1724744795234,0.02780244,62955.0,62954.0,0.79511026]
[1724744796111,0.02680244,62955.0,62954.0,0.79511026]
[1724744796760,0.02580244,62955.0,62954.0,0.79511026]
[1724744796966,0.02680244,62955.0,62954.0,0.80311026]
[1724744797394,0.02580244,62955.0,62954.0,0.79511026]
[1724744797610,0.02680244,62955.0,62954.0,0.80311026]
[1724744798025,0.02780244,62955.0,62954.0,0.81011026]
[1724744798635,0.02580244,62955.0,62954.0,0.79511026]
[1724744799284,0.02680244,62955.0,62954.0,0.80711026]
[1724744799504,0.02680244,62955.0,62954.0,0.720388]
[1724744799718,0.02680244,62955.0,62954.0,0.80711026]
[1724744799922,0.02780244,62955.0,62954.0,0.81511026]
[1724744800153,0.02780244,62955.0,62954.0,0.80711026]
[1724744800555,0.02880244,62955.0,62954.0,0.81511026]
[1724744801820,0.0039064,62955.0,62954.0,0.81511026]
[1724744805952,0.00371522,62955.0,62954.0,0.81511026]
[1724744807033,0.00371522,62955.0,62954.0,1.22033914]
[1724744807802,0.00271522,62955.0,62954.0,1.20833914]
[1724744808009,0.00271522,62955.0,62954.0,1.22725591]
[1724744808213,0.00271522,62955.0,62954.0,1.20733914]
[1724744808214,0.00171522,62955.0,62954.0,1.20733914]
[1724744808432,0.00171522,62955.0,62954.0,1.21925591]
[1724744808643,0.00171522,62955.0,62954.0,1.22025526]
[1724744809055,0.00271522,62955.0,62954.0,1.22725526]
[1724744809469,0.00271522,62955.0,62954.0,1.21533914]
[1724744809917,0.00271522,62955.0,62954.0,1.53772314]
[1724744810122,0.00271522,62955.0,62954.0,1.54963875]
[1724744810324,0.00271522,62955.0,62954.0,1.53772314]
[1724744810523,0.00171522,62955.0,62954.0,1.53072314]
[1724744810728,0.00071522,62955.0,62954.0,1.52272314]
[1724744810933,0.00071522,62955.0,62954.0,1.53672314]
[1724744811151,0.00071522,62955.0,62954.0,1.55072314]
[1724744811358,0.00071522,62955.0,62954.0,1.52272314]
[1724744811567,0.00071522,62955.0,62954.0,1.57023524]
[1724744811768,0.00071522,62955.0,62954.0,1.62203099]
[1724744812302,0.00071522,62955.0,62954.0,1.96041936]
[1724744812497,0.00071522,62955.0,62954.0,1.53672314]
[1724744812723,0.00071522,62955.0,62954.0,1.55072314]
[1724744813381,0.00071522,62955.0,62954.0,1.53672314]
[1724744813763,0.00071522,62955.0,62954.0,1.59820134]
[1724744813950,0.00071522,62955.0,62954.0,1.55072314]
[1724744817242,0.00055622,62955.0,62954.0,1.24161688]
[1724744817444,0.00055622,62955.0,62954.0,0.89523288]
[1724744817802,0.00055622,62955.0,62954.0,0.369704]
[1724744818406,0.07655622,62955.0,62954.0,0.13332]
[1724744818613,0.13865622,62955.0,62954.0,0.13332]
[1724744819280,0.13865622,62955.0,62954.0,0.355704]
[1724744819498,0.13865622,62955.0,62954.0,0.366704]
[1724744819668,0.13865622,62955.0,62954.0,0.352704]
[1724744820512,0.13865622,62955.0,62954.0,0.366704]
[1724744820717,0.13865622,62955.0,62954.0,0.341704]
[1724744821123,0.13865622,62955.0,62954.0,0.363704]
[1724744821474,0.13865622,62955.0,62954.0,0.353704]
[1724744821879,0.13865622,62955.0,62954.0,0.355704]
[1724744822511,0.13865622,62955.0,62954.0,0.341704]
[1724744822718,0.07655622,62955.0,62954.0,0.574088]
[1724744822917,0.07655622,62955.0,62954.0,0.351704]
[1724744823335,0.07655622,62955.0,62954.0,0.365704]
[1724744824156,0.07655622,62955.0,62954.0,0.341704]
[1724744824361,0.07655622,62955.0,62954.0,0.353704]
[1724744824563,0.07655622,62955.0,62954.0,0.367704]
[1724744824771,0.07655622,62955.0,62954.0,0.355704]
[1724744824970,0.07655622,62955.0,62954.0,0.369704]
[1724744825168,0.00055622,62955.0,62954.0,0.420204]
[1724744825579,0.00055622,62955.0,62954.0,0.430204]
[1724744826000,0.00055622,62955.0,62954.0,0.420204]
[1724744826418,0.00055622,62955.0,62954.0,0.355704]
[1724744827294,0.00055622,62955.0,62954.0,0.578088]
[1724744827511,0.00055622,62955.0,62954.0,0.592088]
[1724744830806,0.00055622,62955.0,62954.0,0.369704]
[1724744832062,0.06345622,62955.0,62954.0,0.369704]
[1724744832288,0.14325622,62955.0,62954.0,0.369704]
[1724744842500,0.14325622,62955.0,62954.0,0.14732]
[1724744842701,0.14325622,62955.0,62954.0,0.369704]
[1724744846902,0.14325622,62955.0,62954.0,0.14732]
[1724744847991,0.25444622,62955.0,62954.0,0.036128]
[1724744849139,0.52442777,62955.0,62954.0,0.036128]
[1724744849362,0.30204677,62955.0,62954.0,0.022128]
[1724744849585,0.30204677,62955.0,62954.0,0.032128]
[1724744850059,0.30204677,62955.0,62954.0,0.018128]
[1724744850313,0.25444622,62955.0,62954.0,0.030128]
[1724744850522,0.25444622,62955.0,62954.0,0.018128]
[1724744850938,0.25444622,62955.0,62954.0,0.030128]
[1724744851361,0.14325622,62955.0,62954.0,0.030128]
[1724744852232,0.25444622,62955.0,62954.0,0.030128]
[1724744853538,0.14325622,62955.0,62954.0,0.030128]
[1724744859609,0.19085839,62955.0,62954.0,0.030128]
[1724744859826,0.19086514,62955.0,62954.0,0.030128]
[1724744860243,0.30205514,62955.0,62954.0,0.030128]
[1724744860887,0.30186396,62955.0,62954.0,0.030128]
[1724744861547,0.25425504,62955.0,62954.0,0.030128]
[1724744862670,0.32566842,62955.0,62954.0,0.030128]
[1724744864557,0.32571357,62955.0,62954.0,0.030128]
[1724744867104,0.21452357,62955.0,62954.0,0.030128]
[1724744869381,0.21451562,62955.0,62954.0,0.030128]
[1724744869991,0.1906972,62955.0,62954.0,0.030128]
[1724744870383,0.14306504,62955.0,62954.0,0.030128]
[1724744875411,0.19069756,62955.0,62954.0,0.030128]
[1724744878987,0.1907104,62955.0,62954.0,0.030128]
[1724744883357,0.14306504,62955.0,62954.0,0.030128]
[1724744884457,0.25425504,62955.0,62954.0,0.030128]
[1724744884837,0.34954577,62955.0,62954.0,0.030128]
[1724744885446,0.25425504,62955.0,62954.0,0.030128]
[1724744887460,0.37343833,62955.0,62954.0,0.030128]
[1724744889927,0.37354523,62955.0,62954.0,0.030128]
[1724744890361,0.25436194,62955.0,62954.0,0.030128]
[1724744896454,0.14317194,62955.0,62954.0,0.030128]
[1724744897163,0.25436194,62955.0,62954.0,0.030128]
[1724744899630,0.14317194,62955.0,62954.0,0.030128]
[1724744900133,0.08027194,62955.0,62954.0,0.030128]
[1724744905689,0.19958651,62955.0,62954.0,0.030128]
[1724744908834,0.19958651,62955.0,62954.0,0.14132]
[1724744911924,0.199582,62955.0,62954.0,0.14151099]
[1724744912496,0.199582,62955.0,62954.0,0.14132]
[1724744912704,0.199582,62955.0,62954.0,0.14151099]
[1724744912912,0.199582,62955.0,62954.0,0.14132]
[1724744913087,0.199582,62955.0,62954.0,0.14151099]
[1724744913587,0.199582,62955.0,62954.0,0.14132]
[1724744913790,0.199582,62955.0,62954.0,0.03031899]
[1724744914228,0.08027194,62955.0,62954.0,0.030128]
[1724744914476,0.17571718,62955.0,62954.0,0.03031899]
[1724744914639,0.17571603,62955.0,62954.0,0.03031899]
[1724744914838,0.17571599,62955.0,62954.0,0.03031899]
[1724744915265,0.17552481,62955.0,62954.0,0.03031899]
[1724744915475,0.08008076,62955.0,62954.0,0.03031899]
[1724744915682,0.17552261,62955.0,62954.0,0.03031899]
[1724744915901,0.08008076,62955.0,62954.0,0.03031899]
[1724744916105,0.17552261,62955.0,62954.0,0.03031899]
[1724744916301,0.08008076,62955.0,62954.0,0.03031899]
[1724744917650,0.08008076,62955.0,62954.0,0.14151099]
[1724744918479,0.08008076,62955.0,62954.0,0.14132]
[1724744918480,0.17551806,62955.0,62954.0,0.14132]
[1724744918930,0.17551806,62955.0,62954.0,0.14151099]
[1724744919464,0.08008076,62955.0,62954.0,0.14151099]
[1724744919693,0.07185204,62955.0,62954.0,0.42777155]
[1724744919896,0.00028076,62955.0,62954.0,1.11489344]
[1724744920099,0.00028076,62955.0,62954.0,1.13789344]
[1724744920707,0.00028076,62955.0,62954.0,1.18558193]
[1724744921137,0.00028076,62955.0,62954.0,1.12589344]
[1724744921547,0.00028076,62955.0,62954.0,1.13989344]
[1724744922158,0.00028076,62955.0,62954.0,1.12989344]
[1724744923436,0.00028076,62955.0,62954.0,1.11589344]
[1724744923838,0.00028076,62955.0,62954.0,1.12989344]
[1724744924090,0.00028076,62955.0,62954.0,1.12689344]
[1724744924280,0.00028076,62955.0,62954.0,1.14089344]
[1724744924604,0.00028076,62955.0,62954.0,1.12689344]
[1724744925455,0.00028076,62955.0,62954.0,1.11589344]
[1724744925861,0.00028076,62955.0,62954.0,1.12989344]
[1724744926266,0.00028076,62955.0,62954.0,1.11589344]
[1724744926703,0.00028076,62955.0,62954.0,1.12989344]
[1724744927241,0.00028076,62955.0,62954.0,1.11589344]
[1724744927675,0.00028076,62955.0,62954.0,1.12989344]
[1724744928640,0.00028076,62955.0,62954.0,1.14389344]
[1724744943863,0.00028076,62955.0,62954.0,1.12989344]
[1724744944057,0.00028076,62955.0,62954.0,1.11589344]
[1724744944372,0.00028076,62955.0,62954.0,1.14389344]
[1724744945817,0.0641,62975.0,62967.0,0.001]
[1724744946068,0.0641,62975.0,62974.0,0.333469]
[1724744946069,0.05591292,62975.0,62974.0,0.333469]
[1724744946273,0.002,62981.0,62980.0,0.222292]
[1724744946510,0.002,62985.0,62984.0,0.111139]
[1724744946745,0.002,62985.0,62984.0,0.1978013]
[1724744946944,0.003,62985.0,62984.0,0.0866623]
[1724744947203,0.02788485,62985.0,62984.0,0.0866623]
[1724744947938,0.02788485,62985.0,62984.0,0.20097627]
[1724744948134,0.02688485,62985.0,62984.0,0.42525427]
[1724744948364,0.02788485,62985.0,62984.0,0.42525427]
[1724744948791,0.02788485,62985.0,62984.0,0.64753227]
[1724744948792,0.10598485,62985.0,62984.0,0.64753227]
[1724744949014,0.17158485,62985.0,62984.0,0.64853227]
[1724744949661,0.16958485,62985.0,62984.0,0.64853227]
[1724744949872,0.16958485,62985.0,62984.0,0.64753227]
[1724744950093,0.16958485,62985.0,62984.0,0.64653227]
[1724744950579,0.02488485,62985.0,62984.0,0.64753227]
[1724744950825,0.02488485,62985.0,62984.0,0.6423573]
[1724744951065,0.02488485,62985.0,62984.0,0.6563573]
[1724744951986,0.02488485,62985.0,62984.0,0.6703573]
[1724744952710,0.02488485,62985.0,62984.0,0.83020218]
[1724744953636,0.0654,62989.0,62988.0,0.111132]
[1724744953863,0.0654,62989.0,62988.0,0.4200583]
[1724744954085,0.0654,62989.0,62988.0,0.6423223]